bitfinex/quotes_SOLUSD_20250217
["timestamp","ask_amount","ask_price","bid_price","bid_amount"]
[1739779381992,101.2,181.46,181.45,0.063]
[1739779382484,105.0575,181.46,181.45,0.063]
[1739779382679,115.5692408,181.46,181.45,0.063]
[1739779383779,105.0575,181.46,181.45,0.063]
[1739779384393,115.5692408,181.46,181.45,0.063]
[1739779388606,14.3692408,181.46,181.45,0.063]
[1739779388781,15.40281035,181.46,181.45,0.063]
[1739779388982,116.60281035,181.46,181.45,0.063]
[1739779389194,115.5692408,181.46,181.45,0.063]
[1739779389904,115.5692408,181.46,181.41,0.03]
[1739779389905,20.0,181.42,181.41,0.03]
[1739779390101,87.44,181.49,181.41,12.1905408]
[1739779390407,10.5117408,181.43,181.41,0.03]
[1739779390705,102.23386922,181.42,181.41,0.03]
[1739779391082,116.60401002,181.42,181.41,0.03]
[1739779391280,115.5701408,181.42,181.41,0.03]
[1739779394109,105.0584,181.42,181.41,0.03]
[1739779394509,115.5701408,181.42,181.41,0.03]
[1739779396009,34.3701408,181.42,181.41,0.03]
[1739779396313,35.40396288,181.42,181.41,0.03]
[1739779396889,45.05006288,181.42,181.35,1.6488]
[1739779397097,10.5117408,181.39,181.35,1.6488]
[1739779397294,10.5117408,181.37,181.32,6.631]
[1739779397498,102.23414935,181.36,181.32,6.631]
[1739779398291,101.2,181.36,181.32,6.631]
[1739779398492,101.2,181.36,181.33,10.5117408]
[1739779398705,101.2,181.36,181.34,10.5117408]
[1739779399092,105.0597,181.36,181.32,6.631]
[1739779399998,115.5714408,181.36,181.3,1.5412]
[1739779400812,10.5117408,181.31,181.28,6.694]
[1739779401686,10.5117408,181.31,181.3,0.03]
[1739779401886,3.8607,181.31,181.3,0.03]
[1739779402093,14.3723408,181.32,181.3,0.03]
[1739779402289,10.5117408,181.32,181.3,0.03]
[1739779402492,14.3723408,181.32,181.3,0.03]
[1739779402705,10.5117408,181.33,181.3,0.03]
[1739779402904,101.2,181.34,181.3,0.03]
[1739779403608,105.0601,181.34,181.3,0.03]
[1739779403810,101.2,181.34,181.3,0.03]
[1739779404313,105.0601,181.34,181.3,0.03]
[1739779404613,101.2,181.34,181.3,0.03]
[1739779404992,3.8599,181.35,181.3,0.03]
[1739779405613,3.8599,181.35,181.3,10.5417408]
[1739779406532,3.8599,181.35,181.3,0.03]
[1739779408089,3.8599,181.35,181.3,10.5417408]
[1739779408294,3.8599,181.35,181.3,0.03]
[1739779409019,1.03422271,181.34,181.3,0.03]
[1739779409311,10.5117408,181.33,181.3,0.03]
[1739779410019,11.54608446,181.32,181.3,0.03]
[1739779410513,3.8607,181.31,181.3,0.03]
[1739779410820,3.8603,181.33,181.3,0.03]
[1739779411402,4.8945665,181.33,181.3,0.03]
[1739779412497,3.8603,181.33,181.3,0.03]
[1739779414014,3.8601,181.35,181.31,10.5117408]
[1739779414326,3.8601,181.35,181.32,10.5117408]
[1739779416419,101.2,181.37,181.34,10.5117408]
[1739779416605,101.2,181.37,181.35,10.5117408]
[1739779416799,3.859,181.39,181.31,13.41184853]
[1739779417105,1.03398062,181.38,181.33,10.5117408]
[1739779417823,1.03398062,181.38,181.32,10.5117408]
[1739779418205,1.03398062,181.38,181.33,10.5117408]
[1739779418417,3.8593,181.38,181.33,10.5117408]
[1739779418724,3.8593,181.38,181.34,10.5117408]
[1739779419225,3.8593,181.38,181.33,10.5117408]
[1739779421743,4.89334136,181.38,181.33,10.5117408]
[1739779423237,4.89334136,181.38,181.32,10.5117408]
[1739779423534,15.40508216,181.38,181.31,10.5117408]
[1739779423702,10.5117408,181.36,181.3,0.03]
[1739779423899,1.03420609,181.35,181.3,0.03]
[1739779424104,11.54594689,181.35,181.3,0.03]
[1739779424305,3.8601,181.34,181.3,0.03]
[1739779424540,1.03429326,181.33,181.3,0.03]
[1739779424708,112.74603406,181.33,181.3,0.03]
[1739779424906,111.7117408,181.33,181.3,0.03]
[1739779425129,101.2,181.33,181.3,0.03]
[1739779426125,102.23424355,181.33,181.3,0.03]
[1739779426428,3.8605,181.32,181.3,0.03]
[1739779426811,4.8948667,181.32,181.3,0.03]
[1739779427625,101.2,181.33,181.3,0.03]
[1739779427933,105.0603,181.33,181.3,0.03]
[1739779428815,3.8603,181.33,181.3,0.03]
[1739779429927,101.2,181.34,181.3,0.03]
[1739779430142,3.8601,181.35,181.31,10.5117408]
[1739779431050,3.8597,181.36,181.31,10.5117408]
[1739779432658,4.89382514,181.36,181.3,10.5417408]
[1739779432970,15.40556594,181.36,181.3,0.03]
[1739779433166,10.5117408,181.35,181.3,0.03]
[1739779433473,1.03431814,181.34,181.3,0.03]
[1739779434358,3.8603,181.33,181.3,0.03]
[1739779434554,3.8603,181.33,181.3,10.5417408]
[1739779435653,3.8601,181.34,181.3,10.5417408]
[1739779435876,3.8601,181.34,181.3,0.03]
[1739779436175,4.89432968,181.34,181.3,0.03]
[1739779439087,25.05637048,181.34,181.3,0.03]
[1739779440466,15.40607048,181.34,181.3,0.03]
[1739779440642,4.89432968,181.34,181.3,0.03]
[1739779442492,97.1489,181.37,181.31,10.5117408]
[1739779442653,3.8597,181.36,181.32,10.5117408]
[1739779443066,3.8597,181.36,181.31,10.5117408]
[1739779443393,3.8597,181.36,181.32,10.5117408]
[1739779443861,88.53410112,181.37,181.33,10.5117408]
[1739779444069,91.3595,181.37,181.34,10.5117408]
[1739779444264,91.3595,181.37,181.33,10.5117408]
[1739779444485,91.3595,181.37,181.32,10.5117408]
[1739779444998,3.8595,181.37,181.32,10.5117408]
[1739779445368,1.03408352,181.36,181.31,10.5117408]
[1739779445572,11.54582432,181.36,181.3,0.03]
[1739779445886,112.74582432,181.36,181.3,0.03]
[1739779446094,3.8599,181.35,181.3,10.5417408]
[1739779446916,3.8599,181.35,181.3,0.03]
[1739779447078,4.89412655,181.35,181.3,0.03]
[1739779447908,10.5117408,181.34,181.3,0.03]
[1739779448081,10.5117408,181.33,181.3,0.03]
[1739779448503,11.54598094,181.33,181.3,0.03]
[1739779448671,10.5117408,181.32,181.3,0.03]
[1739779449595,3.8607,181.31,181.3,0.03]
[1739779450402,14.3724408,181.31,181.3,0.03]
[1739779454187,16.61573714,181.31,181.3,0.03]
[1739779455475,50.0,181.29,181.17,20.65328383]
[1739779455675,10.5117408,181.22,181.17,10.14154303]
[1739779455893,10.5117408,181.2,181.17,10.14154303]
[1739779456105,10.5117408,181.19,181.17,8.61094303]
[1739779456320,10.5117408,181.18,181.17,8.61094303]
[1739779457293,10.5117408,181.18,181.15,8.61094303]
[1739779457610,10.5117408,181.17,181.15,8.61094303]
[1739779457913,10.5117408,181.16,181.15,8.61094303]
[1739779458701,10.5117408,181.17,181.15,8.61094303]
[1739779461323,10.5117408,181.17,181.13,1.5306]
[1739779461493,10.5117408,181.16,181.13,1.5306]
[1739779463018,10.5117408,181.15,181.13,1.5306]
[1739779464585,10.5117408,181.14,181.11,0.03]
[1739779464788,10.5117408,181.12,181.11,0.03]
[1739779465090,10.5117408,181.13,181.11,0.03]
[1739779465925,10.5117408,181.12,181.11,0.03]
[1739779466639,14.3765408,181.12,181.11,0.03]
[1739779467491,11.54724805,181.12,181.11,0.03]
[1739779467705,10.5117408,181.12,181.11,0.03]
[1739779469119,10.5117408,181.14,181.11,0.03]
[1739779470355,10.5117408,181.17,181.11,10.5417408]
[1739779470522,10.5117408,181.18,181.12,12.1259408]
[1739779470722,10.5117408,181.18,181.13,13.41184853]
[1739779471729,10.5117408,181.2,181.13,23.92358933]
[1739779472236,10.5117408,181.21,181.16,13.41184853]
[1739779472426,87.5,181.23,181.18,10.5117408]
[1739779472625,87.5,181.23,181.2,29.88029946]
[1739779472960,0.063,181.28,181.19,8.2651]
[1739779472961,4.36,181.22,181.19,8.2651]
[1739779473123,16.46845093,181.25,181.2,13.41184853]
[1739779473331,16.46845093,181.26,181.2,13.41184853]
[1739779473650,0.063,181.28,181.23,13.41184853]
[1739779473958,0.063,181.28,181.23,29.88029946]
[1739779474186,0.063,181.28,181.26,3.8618]
[1739779474379,0.063,181.28,181.26,20.33025093]
[1739779474520,0.063,181.28,181.27,1.6142]
[1739779475534,0.063,181.28,181.27,18.08265093]
[1739779476059,0.063,181.28,181.27,1.6142]
[1739779476262,0.063,181.28,181.27,31.49449946]
[1739779476437,0.063,181.28,181.27,38.14539946]
[1739779476624,0.063,181.28,181.27,21.67694853]
[1739779478362,0.063,181.28,181.27,1.6142]
[1739779479349,0.063,181.28,181.25,13.41184853]
[1739779479550,0.063,181.28,181.25,17.27384853]
[1739779479852,0.063,181.28,181.25,13.41184853]
[1739779480031,16.53145093,181.28,181.23,8.2651]
[1739779480345,16.46845093,181.24,181.19,3.8633]
[1739779480657,16.46845093,181.24,181.2,13.41184853]
[1739779481163,16.46845093,181.25,181.2,13.41184853]
[1739779481848,16.46845093,181.22,181.18,8.2651]
[1739779482028,16.46845093,181.19,181.14,5.4785]
[1739779482227,1.03471217,181.25,181.14,1.6142]
[1739779482228,16.46845093,181.17,181.14,1.6142]
[1739779482438,16.46845093,181.16,181.14,1.6142]
[1739779482636,16.46845093,181.16,181.13,0.03]
[1739779482838,16.46845093,181.15,181.13,0.03]
[1739779483225,16.46845093,181.14,181.13,0.03]
[1739779483431,16.46845093,181.15,181.13,0.03]
[1739779484553,6.0676,181.23,181.13,0.03]
[1739779484554,1.03510877,181.24,181.13,0.03]
[1739779484752,16.46845093,181.21,181.14,16.46845093]
[1739779485228,16.46845093,181.19,181.13,0.03]
[1739779485429,16.46845093,181.18,181.13,0.03]
[1739779485652,16.46845093,181.17,181.13,0.03]
[1739779486035,16.46845093,181.14,181.13,0.03]
[1739779492050,16.46845093,181.15,181.13,0.03]
[1739779493566,16.46845093,181.14,181.13,0.03]
[1739779494746,21.3681716,181.14,181.13,0.03]
[1739779495370,20.33285093,181.14,181.13,0.03]
[1739779498857,3.8644,181.14,181.13,0.03]
[1739779499057,20.33285093,181.14,181.13,0.03]
[1739779504976,20.33255093,181.16,181.13,0.03]
[1739779505682,87.58,181.18,181.13,0.03]
[1739779505881,16.46845093,181.15,181.13,0.03]
[1739779506064,20.33285093,181.14,181.13,0.03]
[1739779508088,20.33245093,181.16,181.13,0.03]
[1739779508476,91.4437,181.18,181.13,0.03]
[1739779508679,87.58,181.18,181.13,16.49845093]
[1739779508876,87.58,181.18,181.14,15.07704853]
[1739779509074,87.58,181.18,181.15,16.46845093]
[1739779509275,20.33115093,181.22,181.15,16.46845093]
[1739779510184,16.46845093,181.22,181.15,16.46845093]
[1739779511066,20.33115093,181.22,181.15,16.46845093]
[1739779512289,3.862,181.25,181.14,31.54549946]
[1739779512490,16.46845093,181.2,181.14,15.07704853]
[1739779513483,16.46845093,181.21,181.14,31.54549946]
[1739779513682,20.33135093,181.21,181.14,31.54549946]
[1739779514276,20.33135093,181.21,181.16,13.41184853]
[1739779514578,20.33115093,181.22,181.16,13.41184853]
[1739779515972,20.33115093,181.22,181.16,33.74419946]
[1739779515973,16.46845093,181.22,181.16,33.74419946]
[1739779516172,20.33095093,181.23,181.16,33.74419946]
[1739779516388,16.46845093,181.21,181.16,13.41184853]
[1739779516617,16.46845093,181.2,181.14,18.13365093]
[1739779516812,16.46845093,181.19,181.14,1.6652]
[1739779517012,16.46845093,181.18,181.14,1.6652]
[1739779517176,16.46845093,181.16,181.13,0.03]
[1739779517676,16.46845093,181.14,181.13,0.03]
[1739779517878,20.33285093,181.14,181.13,0.03]
[1739779519382,16.46845093,181.14,181.13,0.03]
[1739779519577,16.46845093,181.15,181.13,0.03]
[1739779519775,16.46845093,181.17,181.13,0.03]
[1739779519975,20.33195093,181.19,181.13,16.49845093]
[1739779520177,20.33195093,181.19,181.13,15.99845093]
[1739779520403,16.46845093,181.19,181.13,17.55955093]
[1739779520710,16.46845093,181.2,181.14,29.88029946]
[1739779521029,16.46845093,181.21,181.14,29.88029946]
[1739779521171,16.46845093,181.21,181.16,13.41184853]
[1739779521375,16.46845093,181.2,181.14,16.46845093]
[1739779521575,16.46845093,181.2,181.13,18.05955093]
[1739779521801,16.46845093,181.21,181.14,33.74469946]
[1739779522205,16.46845093,181.2,181.14,33.74469946]
[1739779522585,16.46845093,181.21,181.14,33.74469946]
[1739779523008,16.46845093,181.21,181.16,13.41184853]
[1739779523518,16.46845093,181.22,181.16,13.41184853]
[1739779523725,16.46845093,181.23,181.17,13.41184853]
[1739779524015,16.46845093,181.22,181.17,13.41184853]
[1739779524224,16.46845093,181.22,181.17,17.27554853]
[1739779524816,16.46845093,181.23,181.17,17.27554853]
[1739779525007,16.46845093,181.25,181.19,13.41184853]
[1739779525531,20.33025093,181.26,181.2,13.41184853]
[1739779525728,16.46845093,181.27,181.21,13.41184853]
[1739779526393,15.96845093,181.27,181.21,17.27464853]
[1739779526593,16.53145093,181.28,181.23,13.41184853]
[1739779527806,0.063,181.28,181.25,13.41184853]
[1739779528219,0.063,181.28,181.23,3.8624]
[1739779529228,0.063,181.28,181.23,17.27424853]
[1739779530057,0.063,181.28,181.24,13.41184853]
[1739779530211,0.063,181.28,181.24,29.88029946]
[1739779530942,0.063,181.28,181.25,16.46845093]
[1739779531155,0.063,181.28,181.26,13.41184853]
[1739779531321,0.063,181.28,181.26,29.88029946]
[1739779531652,0.063,181.28,181.25,13.41184853]
[1739779531866,0.063,181.28,181.23,3.8624]
[1739779532075,0.063,181.28,181.24,13.41184853]
[1739779532359,0.063,181.28,181.24,29.88029946]
[1739779533444,0.063,181.28,181.24,13.41184853]
[1739779534452,0.063,181.28,181.25,3.862]
[1739779536929,0.063,181.28,181.26,13.41184853]
[1739779537327,13.71402375,181.29,181.28,15.41184853]
[1739779537531,16.46845093,181.4,181.32,13.41184853]
[1739779537744,16.46845093,181.4,181.34,13.41184853]
[1739779538139,16.46845093,181.4,181.35,3.8599]
[1739779538346,16.46845093,181.4,181.36,13.41184853]
[1739779539247,0.063,181.41,181.36,13.41184853]
[1739779539248,16.53145093,181.41,181.36,13.41184853]
[1739779539449,16.53145093,181.41,181.36,17.27144853]
[1739779539450,0.063,181.41,181.36,17.27144853]
[1739779539644,0.063,181.41,181.36,33.73989946]
[1739779539854,0.063,181.41,181.36,13.41184853]
[1739779539855,16.53145093,181.41,181.36,13.41184853]
[1739779540245,16.46845093,181.39,181.35,1.5199]
[1739779540451,16.46845093,181.37,181.31,17.98835093]
[1739779540953,16.46845093,181.37,181.32,33.41184853]
[1739779541152,16.46845093,181.38,181.32,33.41184853]
[1739779541339,16.46845093,181.39,181.32,49.88029946]
[1739779541542,16.46845093,181.4,181.33,16.46845093]
[1739779541736,16.46845093,181.4,181.34,13.41184853]
[1739779541937,16.46845093,181.37,181.31,1.5199]
[1739779542165,16.46845093,181.36,181.31,1.5199]
[1739779542364,16.46845093,181.36,181.32,13.41184853]
[1739779542737,16.46845093,181.35,181.32,13.41184853]
[1739779542948,16.46845093,181.33,181.27,6.0498]
[1739779543265,16.46845093,181.3,181.26,1.5199]
[1739779543667,16.46845093,181.32,181.26,5.3817]
[1739779543957,16.46845093,181.33,181.27,13.41184853]
[1739779544149,16.46845093,181.35,181.28,16.46845093]
[1739779544354,16.46845093,181.35,181.29,13.41184853]
[1739779544550,16.46845093,181.34,181.27,29.88029946]
[1739779544755,16.46845093,181.33,181.27,29.88029946]
[1739779544949,16.46845093,181.32,181.27,13.41184853]
[1739779545471,16.46845093,181.33,181.29,13.41184853]
[1739779545951,16.46845093,181.32,181.27,13.41184853]
[1739779546156,16.46845093,181.31,181.27,13.41184853]
[1739779546667,16.46845093,181.32,181.27,13.41184853]
[1739779547253,16.46845093,181.32,181.27,17.27334853]
[1739779548473,16.46845093,181.33,181.27,17.27334853]
[1739779548676,16.46845093,181.35,181.28,16.46845093]
[1739779548852,16.46845093,181.36,181.3,13.41184853]
[1739779549287,16.46845093,181.36,181.3,17.27274853]
[1739779550475,16.46845093,181.36,181.3,13.41184853]
[1739779550678,16.46845093,181.36,181.3,17.27264853]
[1739779551277,16.46845093,181.35,181.3,17.27264853]
[1739779551480,1.09682934,181.41,181.26,11.174]
[1739779551481,16.46845093,181.33,181.26,17.98835093]
[1739779551673,16.46845093,181.33,181.27,13.41184853]
[1739779552183,16.46845093,181.34,181.27,33.74169946]
[1739779552357,16.46845093,181.34,181.28,16.46845093]
[1739779552869,16.46845093,181.35,181.29,3.8612]
[1739779553272,16.46845093,181.34,181.29,3.8612]
[1739779553663,16.46845093,181.34,181.28,3.8614]
[1739779553860,16.46845093,181.35,181.29,13.41184853]
[1739779554068,16.46845093,181.36,181.29,29.88029946]
[1739779554458,16.46845093,181.37,181.3,16.46845093]
[1739779554779,16.46845093,181.37,181.32,13.41184853]
[1739779554988,16.46845093,181.35,181.32,13.41184853]
[1739779556980,16.46845093,181.35,181.3,17.27284853]
[1739779557278,0.063,181.41,181.32,13.41184853]
[1739779557279,16.46845093,181.38,181.32,13.41184853]
[1739779557466,16.46845093,181.38,181.32,29.88029946]
[1739779557661,0.063,181.37,181.32,29.88029946]
[1739779558285,0.063,181.37,181.31,16.46845093]
[1739779558485,0.063,181.37,181.32,17.27234853]
[1739779558653,0.063,181.37,181.32,33.74079946]
[1739779559886,0.063,181.37,181.32,17.27234853]
[1739779560574,0.063,181.37,181.36,36.46845093]
[1739779560776,0.063,181.37,181.36,49.88029946]
[1739779561275,0.063,181.37,181.36,13.41184853]
[1739779561682,0.063,181.37,181.33,24.55235093]
[1739779561982,0.063,181.37,181.33,8.0839]
[1739779562185,0.063,181.37,181.34,13.41184853]
[1739779563483,0.063,181.37,181.34,17.27194853]
[1739779563899,0.063,181.37,181.34,33.74039946]
[1739779564885,0.063,181.37,181.36,29.88029946]
[1739779565587,0.063,181.37,181.36,30.88029946]
[1739779566178,0.063,181.37,181.36,29.88029946]
[1739779566896,0.063,181.37,181.36,34.73999946]
[1739779567984,0.063,181.37,181.36,35.73999946]
[1739779571068,0.063,181.37,181.36,34.73999946]
[1739779571295,0.063,181.37,181.36,33.73999946]
[1739779573101,0.063,181.37,181.36,34.73999946]
[1739779573399,0.063,181.41,181.4,37.27064853]
[1739779573582,0.063,181.41,181.4,53.73909946]
[1739779574783,0.063,181.41,181.4,55.30319946]
[1739779574982,0.0001,181.41,181.4,57.93216366]
[1739779576496,0.063,181.42,181.41,15.41184853]
[1739779576689,0.0001,181.42,181.41,31.88029946]
[1739779577003,0.0001,181.42,181.41,35.73889946]
[1739779578108,0.0001,181.42,181.41,42.05019946]
[1739779578475,0.0001,181.42,181.41,58.51865039]
[1739779578797,0.063,181.47,181.46,15.41184853]
[1739779579000,0.063,181.49,181.48,35.41184853]
[1739779579200,0.063,181.49,181.48,52.5079415]
[1739779579403,0.063,181.49,181.48,58.8192415]
[1739779579809,0.0001,181.49,181.48,58.8192415]
[1739779580185,0.0001,181.49,181.48,56.8192415]
[1739779580386,0.0001,181.49,181.48,57.8192415]
[1739779580594,0.0001,181.49,181.48,60.6763415]
[1739779580794,0.0001,181.49,181.48,53.73739946]
[1739779581001,0.0001,181.49,181.48,13.41184853]
[1739779582316,0.0001,181.49,181.48,29.88029946]
[1739779582684,0.0001,181.49,181.48,13.41184853]
[1739779582885,0.0001,181.49,181.44,16.46845093]
[1739779583090,16.46845093,181.48,181.42,16.46845093]
[1739779583396,0.0001,181.49,181.44,13.41184853]
[1739779583794,16.46855093,181.49,181.44,13.41184853]
[1739779585409,0.0001,181.49,181.44,13.41184853]
[1739779585585,0.0001,181.49,181.45,16.46845093]
[1739779585789,0.0001,181.49,181.46,13.41184853]
[1739779586199,0.0001,181.49,181.47,13.41184853]
[1739779586395,0.0001,181.49,181.47,29.88029946]
[1739779586704,0.0001,181.49,181.48,29.88029946]
[1739779587098,0.0001,181.49,181.48,32.50821792]
[1739779587297,0.0001,181.49,181.48,34.07231792]
[1739779587513,0.0001,181.49,181.48,37.92941792]
[1739779589104,0.063,181.56,181.53,1.0]
[1739779589310,0.063,181.56,181.55,29.88029946]
[1739779589489,0.063,181.56,181.55,33.73589946]
[1739779591114,0.063,181.56,181.55,13.41184853]
[1739779591694,0.063,181.56,181.55,17.26744853]
[1739779591903,0.063,181.56,181.55,13.41184853]
[1739779592594,0.063,181.56,181.55,33.73589946]
[1739779593513,0.063,181.56,181.55,35.36313757]
[1739779594099,0.063,181.56,181.55,36.36313757]
[1739779594892,0.063,181.56,181.55,34.36313757]
[1739779595521,0.063,181.56,181.55,13.41184853]
[1739779595897,0.063,181.56,181.55,17.26744853]
[1739779596106,0.063,181.56,181.55,34.36348203]
[1739779596509,0.063,181.56,181.55,36.36348203]
[1739779597411,0.063,181.56,181.55,17.26744853]
[1739779600129,0.063,181.56,181.55,13.41184853]
[1739779600503,0.063,181.56,181.48,18.03255093]
[1739779600504,16.53145093,181.56,181.48,18.03255093]
[1739779600722,16.46845093,181.54,181.49,3.8569]
[1739779601106,16.46845093,181.55,181.5,13.41184853]
[1739779601328,16.46845093,181.54,181.5,13.41184853]
[1739779602503,16.46845093,181.54,181.5,3.8567]
[1739779603023,0.063,181.56,181.51,13.41184853]
[1739779603215,0.063,181.56,181.51,29.88029946]
[1739779604115,0.063,181.56,181.51,13.41184853]
[1739779604711,0.063,181.56,181.52,3.8563]
[1739779606113,16.46845093,181.54,181.51,13.41184853]
[1739779606304,16.46845093,181.55,181.49,13.47484853]
[1739779606517,16.46845093,181.55,181.5,3.8567]
[1739779608030,0.063,181.56,181.51,29.88029946]
[1739779608425,0.063,181.56,181.52,16.46845093]
[1739779608632,0.063,181.56,181.53,13.41184853]
[1739779608806,0.063,181.56,181.55,33.73589946]
[1739779609611,0.063,181.56,181.55,35.73589946]
[1739779610030,0.063,181.56,181.55,34.73589946]
[1739779610229,0.063,181.56,181.55,33.73589946]
[1739779610721,0.063,181.56,181.55,35.73589946]
[1739779610918,0.063,181.56,181.55,34.73589946]
[1739779611122,0.063,181.56,181.55,33.73589946]
[1739779611835,0.063,181.56,181.55,35.73589946]
[1739779617733,0.063,181.56,181.55,34.73589946]
[1739779617937,0.063,181.56,181.55,35.73589946]
[1739779619223,0.03,181.57,181.55,35.73589946]
[1739779619428,0.03,181.6,181.59,33.41184853]
[1739779619627,0.03,181.6,181.59,50.50707247]
[1739779619827,0.03,181.6,181.59,51.50707247]
[1739779620444,0.0001,181.6,181.59,52.50707247]
[1739779620741,0.0001,181.6,181.59,56.36187247]
[1739779622541,0.0001,181.6,181.59,55.36187247]
[1739779622740,0.0001,181.6,181.59,54.36187247]
[1739779623047,0.0001,181.6,181.59,53.73509946]
[1739779623233,0.0001,181.6,181.59,17.26664853]
[1739779623546,0.0001,181.6,181.59,37.26664853]
[1739779624347,0.0001,181.6,181.59,17.26664853]
[1739779625133,0.0001,181.6,181.59,33.73509946]
[1739779626735,0.0001,181.6,181.59,35.73509946]
[1739779627552,0.0001,181.6,181.59,117.8615689]
[1739779627749,0.0001,181.6,181.59,116.23509946]
[1739779627925,0.0001,181.6,181.59,115.23509946]
[1739779628328,0.0001,181.6,181.59,17.26664853]
[1739779629044,0.0001,181.6,181.59,33.73509946]
[1739779629646,0.0001,181.6,181.59,17.26664853]
[1739779630252,0.0001,181.6,181.59,33.73509946]
[1739779630940,0.0001,181.6,181.59,34.73509946]
[1739779631131,0.0001,181.6,181.59,35.73509946]
[1739779632628,0.0001,181.6,181.59,34.73509946]
[1739779632845,0.0001,181.6,181.59,33.73509946]
[1739779633044,0.0001,181.6,181.59,35.73509946]
[1739779634743,0.0431,181.61,181.6,14.41184853]
[1739779635049,0.0431,181.61,181.6,35.36140426]
[1739779640850,0.0431,181.61,181.6,34.36140426]
[1739779641047,0.0431,181.61,181.6,33.73489946]
[1739779647263,0.0431,181.61,181.6,17.26644853]
[1739779648266,0.0431,181.61,181.6,33.73489946]
[1739779651066,0.0431,181.61,181.6,33.79789946]
[1739779657644,0.0431,181.61,181.6,34.42455163]
[1739779660066,0.0431,181.61,181.6,33.79789946]
[1739779660565,0.0431,181.61,181.6,27.81854739]
[1739779668064,0.0431,181.61,181.6,29.44525831]
[1739779669166,0.0001,181.61,181.6,72.40165375]
[1739779669466,0.0001,181.61,181.6,153.90165375]
[1739779669671,0.0001,181.61,181.6,153.27494283]
[1739779670777,0.03,181.64,181.63,21.0]
[1739779671073,0.03,181.68,181.67,37.26494853]
[1739779671269,0.03,181.68,181.67,49.3797568]
[1739779671476,0.03,181.68,181.67,50.3797568]
[1739779671881,0.03,181.71,181.7,20.0]
[1739779672067,0.03,181.71,181.7,44.52641901]
[1739779672263,0.03,181.71,181.7,86.48281445]
[1739779672569,0.03,181.71,181.7,87.48281445]
[1739779673288,0.03,181.71,181.7,49.37891901]
[1739779673487,0.03,181.71,181.7,91.33531445]
[1739779673950,0.03,181.71,181.7,92.33531445]
[1739779674150,0.03,181.74,181.71,1.0]
[1739779674374,0.03,181.74,181.71,66.85734283]
[1739779675267,0.03,181.74,181.71,70.70954283]
[1739779675876,0.03,181.74,181.73,33.41184853]
[1739779676061,0.03,181.74,181.73,44.5258952]
[1739779676477,0.03,181.75,181.74,15.41184853]
[1739779676688,0.03,181.8,181.77,21.0]
[1739779676892,0.03,181.8,181.77,45.5254416]
[1739779677460,0.03,181.8,181.77,49.3764416]
[1739779678079,0.03,181.8,181.77,50.3764416]
[1739779678586,0.03,181.8,181.77,56.23889768]
[1739779678975,0.03,181.8,181.78,15.41184853]
[1739779679179,0.03,181.8,181.78,31.76340347]
[1739779680067,0.0001,181.79,181.78,31.76340347]
[1739779680269,0.03,181.84,181.82,14.41184853]
[1739779680464,0.0001,181.83,181.82,32.38723735]
[1739779680984,0.03,181.91,181.83,2.0]
[1739779681181,0.03,181.91,181.9,29.76340347]
[1739779681578,0.03,181.91,181.9,31.38665955]
[1739779682008,13.15858082,181.99,181.93,20.0]
[1739779682316,17.90505494,182.0,181.93,36.35155494]
[1739779682544,17.90505494,182.0,181.94,13.41184853]
[1739779682896,17.90505494,182.0,181.94,29.76340347]
[1739779682897,1.5535,182.0,181.94,29.76340347]
[1739779683096,1.5535,182.0,181.96,13.41184853]
[1739779683315,1.5535,182.0,181.95,20.19875494]
[1739779683316,16.35155494,182.04,181.97,16.35155494]
[1739779684000,16.35155494,182.04,181.98,13.41184853]
[1739779684195,16.35155494,182.04,181.98,29.76340347]
[1739779684420,16.35155494,182.04,181.99,13.41184853]
[1739779685007,16.35155494,182.03,181.98,13.41184853]
[1739779685317,16.35155494,182.04,181.98,17.25834853]
[1739779686298,24.11215494,182.05,181.98,33.60990347]
[1739779686496,24.11215494,182.05,182.0,13.41184853]